bitfinex/quotes_SOLUSD_20230112
["timestamp","ask_amount","ask_price","bid_price","bid_amount"]
[1673541914474,20.0,16.009,15.993,30.16042534]
[1673541914703,20.0,16.009,15.995,20.0]
[1673541914877,20.0,16.009,15.996,20.0]
[1673541915095,20.0,16.009,15.996,30.16042534]
[1673541915304,20.0,16.009,15.997,10.16042534]
[1673541915508,20.0,16.009,15.998,20.0]
[1673541916268,20.0,16.009,15.996,20.0]
[1673541916663,20.0,16.009,15.995,20.0]
[1673541916873,20.0,16.007,15.995,20.0]
[1673541917944,20.0,16.007,15.996,10.16042534]
[1673541918161,20.0,16.007,15.997,20.0]
[1673541918474,46.86,16.008,15.997,20.0]
[1673541918879,46.86,16.008,15.997,30.16042534]
[1673541921520,66.85,16.009,15.992,157.7631333]
[1673541921848,66.85,16.009,15.992,113.9958]
[1673541921849,17.0,16.008,15.992,113.9958]
[1673541922158,20.0,16.006,15.992,113.9958]
[1673541922346,63.86,16.005,15.992,113.9958]
[1673541922679,63.86,16.005,15.985,63.7673333]
[1673541922892,20.0,16.004,15.987,10.16042534]
[1673541923088,20.0,16.002,15.989,20.0]
[1673541923299,46.88,16.001,15.99,20.0]
[1673541923928,46.88,16.001,15.989,20.0]
[1673541924468,46.88,16.001,15.989,30.16042534]
[1673541925515,20.0,16.0,15.989,30.16042534]
[1673541926128,46.88,15.999,15.989,20.0]
[1673541926657,20.0,15.998,15.985,43.7673333]
[1673541926870,46.89,15.997,15.98,54.06715915]
[1673541927078,46.89,15.997,15.981,9.85152657]
[1673541927289,20.0,15.996,15.981,9.85152657]
[1673541927501,46.89,15.995,15.981,9.85152657]
[1673541927704,20.0,15.994,15.981,9.85152657]
[1673541927915,46.9,15.993,15.981,9.85152657]
[1673541928233,46.9,15.993,15.981,53.61885987]
[1673541928561,117.4468,15.992,15.982,20.0]
[1673541928964,117.4468,15.992,15.983,9.85152657]
[1673541930258,117.4468,15.992,15.984,20.0]
[1673541930771,46.89,15.997,15.985,20.0]
[1673541931102,46.88,15.999,15.986,30.37257036]
[1673541931625,20.0,15.998,15.986,20.0]
[1673541931832,46.89,15.997,15.986,20.0]
[1673541932234,20.0,15.996,15.986,20.0]
[1673541933622,20.0,15.996,15.986,30.37257036]
[1673541934035,66.89,15.998,15.986,30.37257036]
[1673541934564,46.89,15.998,15.987,20.0]
[1673541934770,46.88,15.999,15.987,20.0]
[1673541934985,66.88,15.999,15.987,10.89363026]
[1673541935194,66.88,15.999,15.988,20.0]
[1673541935411,20.0,15.998,15.988,20.0]
[1673541936027,242.5089,16.004,15.988,20.0]
[1673541936349,20.0,16.002,15.988,20.0]
[1673541936559,20.0,15.999,15.988,20.0]
[1673541937171,20.0,15.999,15.987,20.0]
[1673541938014,66.88,15.999,15.987,20.0]
[1673541940244,66.88,15.999,15.986,20.0]
[1673541940446,66.88,15.999,15.982,34.74]
[1673541940640,66.88,15.999,15.982,10.89363026]
[1673541943500,66.88,15.999,15.982,30.89363026]
[1673541943693,66.88,15.999,15.982,10.89363026]
[1673541944112,66.88,15.999,15.983,20.0]
[1673541946438,66.88,15.999,15.983,30.89363026]
[1673541952410,66.88,15.999,15.984,20.0]
[1673541952617,66.88,15.999,15.985,20.0]
[1673541953788,66.88,15.999,15.984,20.0]
[1673541954735,66.88,15.999,15.982,20.0]
[1673541962293,72.09545,15.999,15.982,20.0]
[1673541962505,5.21545,15.998,15.982,20.0]
[1673541962730,20.0,15.996,15.982,20.0]
[1673541962942,5.21545,15.995,15.982,20.0]
[1673541963564,5.21545,15.995,15.982,40.0]
[1673541963906,5.21545,15.995,15.983,10.89363026]
[1673541964093,5.21545,15.995,15.984,20.0]
[1673541964503,5.21545,15.995,15.985,20.0]
[1673541964732,5.21545,15.995,15.986,20.0]
[1673541964938,5.21545,15.995,15.986,30.89363026]
[1673541965264,5.21545,15.995,15.986,20.0]
[1673541965685,5.21545,15.995,15.986,30.89363026]
[1673541965879,119.1138,16.0,15.986,30.89363026]
[1673541966095,5.21545,15.999,15.987,20.0]
[1673541966297,5.21545,15.999,15.988,20.0]
[1673541966505,5.21545,15.999,15.988,30.89363026]
[1673541967376,25.21545,15.999,15.988,30.89363026]
[1673541968635,25.21545,15.999,15.988,20.0]
[1673541968944,25.21545,15.999,15.987,20.0]
[1673541970313,46.89,15.998,15.987,20.0]
[1673541970620,5.21545,15.997,15.983,10.89363026]
[1673541970837,63.89,15.996,15.979,114.739]
[1673541971055,5.21545,15.995,15.98,10.89363026]
[1673541971244,20.0,15.993,15.98,10.89363026]
[1673541971460,5.21545,15.992,15.98,10.89363026]
[1673541971665,5.21545,15.992,15.976,108.3576]
[1673541971878,5.21545,15.992,15.971,46.96]
[1673541971879,17.67,15.99,15.971,46.96]
[1673541972085,52.12545,15.989,15.971,46.96]
[1673541972306,25.21545,15.988,15.971,46.96]
[1673541972620,5.21545,15.987,15.971,10.89363026]
[1673541972830,5.21545,15.987,15.972,46.96]
[1673541973352,5.21545,15.987,15.973,20.0]
[1673541973971,17.0,15.986,15.97,46.97]
[1673541974286,20.0,15.984,15.97,46.97]
[1673541974505,5.21545,15.983,15.97,46.97]
[1673541974703,5.21545,15.983,15.969,163.7124]
[1673541975663,5.21545,15.983,15.97,20.0]
[1673541975880,5.21545,15.983,15.971,46.96]
[1673541976098,5.21545,15.983,15.972,20.0]
[1673541976821,5.21545,15.983,15.971,20.0]
[1673541977661,5.21545,15.983,15.972,45.52]
[1673541977874,5.21545,15.983,15.973,20.0]
[1673541978075,5.21545,15.983,15.971,20.0]
[1673541979012,5.21545,15.983,15.972,43.31]
[1673541979349,5.21545,15.983,15.973,20.0]
[1673541979873,5.21545,15.983,15.971,20.0]
[1673541982061,5.21545,15.983,15.972,40.34]
[1673541982269,5.21545,15.983,15.973,20.0]
[1673541982923,5.21545,15.983,15.972,20.0]
[1673541983115,5.21545,15.983,15.973,37.73]
[1673541983327,5.21545,15.983,15.974,20.0]
[1673541983951,5.21545,15.983,15.972,40.0]
[1673541984161,5.21545,15.983,15.972,20.0]
[1673541984696,5.21545,15.983,15.972,30.89363026]
[1673541984913,5.21545,15.983,15.973,35.57]
[1673541985134,5.21545,15.983,15.974,20.0]
[1673541985318,5.21545,15.983,15.974,30.89363026]
[1673541985526,5.21545,15.983,15.975,56.15]
[1673541985735,5.21545,15.983,15.976,20.0]
[1673541990679,5.21545,15.983,15.976,128.2182]
[1673541992876,5.21545,15.983,15.977,20.0]
[1673541993087,5.21545,15.983,15.978,20.0]
[1673541993532,46.9,15.993,15.978,20.0]
[1673541993871,25.21545,15.992,15.98,20.0]
[1673541994078,5.21545,15.991,15.981,20.0]
[1673541996681,5.21545,15.991,15.98,20.0]
[1673541999121,13.35,15.99,15.98,20.0]
[1673541999312,5.21545,15.989,15.98,20.0]
[1673542000888,5.21545,15.989,15.981,20.0]
[1673542001841,5.21545,15.989,15.98,40.0]
[1673542002049,5.21545,15.989,15.98,20.0]
[1673542003733,5.21545,15.989,15.98,44.33]
[1673542004052,5.21545,15.989,15.98,20.0]
[1673542006579,25.21545,15.989,15.98,20.0]
[1673542007859,212.61545,15.989,15.98,20.0]
[1673542008068,212.61545,15.989,15.977,20.0]
[1673542008276,212.61545,15.989,15.981,20.0]
[1673542008591,25.21545,15.989,15.977,20.0]
[1673542014986,20.0,15.987,15.972,108.5813]
[1673542015196,5.21545,15.986,15.972,108.5813]
[1673542016285,5.21545,15.986,15.973,20.0]
[1673542016478,17.0,15.985,15.973,20.0]
[1673542016689,17.0,15.985,15.966,41.19432661]
[1673542016690,20.0,15.979,15.966,41.19432661]
[1673542016898,20.0,15.979,15.964,20.21]
[1673542016899,5.21545,15.978,15.964,118.4747]
[1673542017110,5.21545,15.978,15.965,18.85]
[1673542017332,5.21545,15.978,15.964,118.4747]
[1673542019009,5.21545,15.978,15.965,11.91]
[1673542019739,5.21545,15.978,15.966,20.0]
[1673542019948,5.21545,15.978,15.967,10.25]
[1673542020273,5.21545,15.978,15.969,20.0]
[1673542020482,5.21545,15.978,15.97,10.39]
[1673542020689,5.21545,15.978,15.971,20.0]
[1673542021214,5.21545,15.978,15.969,20.0]
[1673542021434,5.21545,15.978,15.97,11.93]
[1673542021620,5.21545,15.978,15.971,20.0]
[1673542022458,5.21545,15.978,15.969,20.0]
[1673542023414,5.21545,15.978,15.969,32.82]
[1673542023628,5.21545,15.978,15.969,40.0]
[1673542026575,5.21545,15.978,15.969,20.0]
[1673542028874,5.21545,15.978,15.969,40.0]
[1673542029088,5.21545,15.978,15.969,20.0]
[1673542030248,5.21545,15.978,15.969,40.0]
[1673542031400,5.21545,15.978,15.969,51.79]
[1673542031923,5.21545,15.978,15.969,31.79]
[1673542032557,5.21545,15.978,15.97,20.0]
[1673542032758,5.21545,15.978,15.971,32.04]
[1673542033920,5.21545,15.978,15.971,20.0]
[1673542036455,5.21545,15.978,15.972,18.28]
[1673542036671,5.21545,15.978,15.973,20.0]
[1673542037291,5.21545,15.978,15.972,20.0]
[1673542038647,5.21545,15.978,15.971,20.0]
[1673542042036,5.21545,15.978,15.972,20.0]
[1673542042980,5.21545,15.978,15.971,40.0]
[1673542045196,5.21545,15.978,15.971,20.0]
[1673542050235,111.5109,15.984,15.972,32.0]
[1673542050443,111.5109,15.984,15.973,40.0]
[1673542050637,111.5109,15.984,15.974,33.86]
[1673542050847,20.0,15.988,15.974,33.86]
[1673542051062,20.0,15.988,15.975,20.0]
[1673542051706,20.0,15.988,15.974,20.0]
[1673542052105,46.91,15.989,15.975,11.09151211]
[1673542052319,555.84122681,15.995,15.975,46.27151211]
[1673542052530,46.89,15.995,15.976,152.9346]
[1673542052744,46.89,15.995,15.977,37.2]
[1673542052954,46.89,15.995,15.978,20.0]
[1673542053169,46.89,15.995,15.979,38.39]
[1673542053492,46.89,15.995,15.98,40.0]
[1673542054118,46.89,15.995,15.98,20.0]
[1673542054119,20.0,15.991,15.98,20.0]
[1673542054334,5.21545,15.99,15.979,20.0]
[1673542054526,5.21545,15.99,15.978,20.0]
[1673542058851,5.21545,15.99,15.981,20.0]
[1673542059059,119.7394,15.992,15.982,20.0]
[1673542059475,46.89,15.997,15.982,20.0]
[1673542059902,88.9616,16.0,15.982,20.0]
[1673542059903,46.88,15.999,15.982,20.0]
[1673542060214,46.89,15.997,15.982,20.0]
[1673542061074,20.0,15.996,15.982,20.0]
[1673542062110,20.0,15.996,15.981,20.0]
[1673542062849,22.21545,15.995,15.981,20.0]
[1673542063163,20.0,15.993,15.981,20.0]
[1673542063591,25.21545,15.993,15.981,20.0]
[1673542065375,17.0,15.992,15.979,20.0]
[1673542065557,13.23,15.99,15.979,20.0]
[1673542065978,13.23,15.99,15.978,20.0]
[1673542066950,63.91,15.989,15.971,27.31]
[1673542067143,25.21545,15.988,15.971,27.31]
[1673542067350,46.92,15.987,15.971,27.31]
[1673542067564,20.0,15.986,15.971,47.31]
[1673542068294,20.0,15.986,15.971,27.31]
[1673542069598,251.32,15.985,15.97,113.3356]
[1673542069905,5.21545,15.984,15.97,113.3356]
[1673542070110,20.0,15.983,15.971,20.0]
[1673542070433,25.21545,15.983,15.971,20.0]
[1673542070859,5.21545,15.983,15.971,20.0]
[1673542074018,25.21545,15.983,15.971,20.0]
[1673542074321,5.21545,15.983,15.971,20.0]
[1673542075270,5.21545,15.983,15.972,20.0]
[1673542075588,5.21545,15.983,15.971,40.0]
[1673542075796,5.21545,15.983,15.971,20.0]
[1673542076326,5.21545,15.983,15.971,40.0]
[1673542076732,5.21545,15.983,15.971,20.0]
[1673542076942,25.21545,15.983,15.971,20.0]
[1673542077360,17.0,15.982,15.971,20.0]
[1673542077571,5.21545,15.981,15.971,20.0]
[1673542077984,20.0,15.98,15.971,20.0]
[1673542078834,17.0,15.979,15.969,20.0]
[1673542079048,22.21545,15.979,15.969,20.0]
[1673542079477,5.21545,15.978,15.967,20.0]
[1673542082090,5.21545,15.978,15.966,20.0]
[1673542082299,5.21545,15.978,15.967,8.448]
[1673542082529,5.21545,15.978,15.968,20.0]
[1673542083145,5.21545,15.978,15.967,20.0]
[1673542084844,5.21545,15.978,15.966,20.0]
[1673542085050,5.21545,15.978,15.967,6.817]
[1673542085368,5.21545,15.978,15.968,20.0]
[1673542086197,5.21545,15.978,15.966,20.0]
[1673542086517,5.21545,15.978,15.967,6.143]
[1673542086729,5.21545,15.978,15.968,20.0]
[1673542087145,46.93,15.982,15.967,20.0]
[1673542087356,20.0,15.983,15.968,25.998]
[1673542087677,25.21545,15.983,15.969,20.0]
[1673542087891,25.21545,15.983,15.97,7.322]
[1673542088102,25.21545,15.983,15.971,20.0]
[1673542088846,17.0,15.982,15.971,20.0]
[1673542089031,13.27,15.98,15.97,20.0]
[1673542089365,20.0,15.979,15.969,20.0]
[1673542091161,18.48545,15.98,15.969,20.0]
[1673542092109,5.21545,15.98,15.97,20.0]
[1673542092325,46.92,15.985,15.97,31.21]
[1673542092529,20.0,15.988,15.97,98.0]
[1673542092724,436.80215399,15.99,15.971,31.09151211]
[1673542092725,416.80215399,15.99,15.971,31.09151211]
[1673542092930,20.0,15.989,15.972,13.18]
[1673542093148,5.21545,15.988,15.972,13.18]
[1673542093371,239.52545,15.988,15.972,13.18]
[1673542093593,239.52545,15.988,15.971,177.74558263]
[1673542093775,20.0,15.987,15.971,162.05558263]
[1673542093981,22.21545,15.986,15.971,162.05558263]
[1673542094195,5.21545,15.985,15.971,162.05558263]
[1673542094510,5.21545,15.985,15.972,66.29198263]
[1673542094719,20.0,15.989,15.973,20.0]
[1673542094949,20.0,15.989,15.974,13.17]
[1673542095567,52.12545,15.988,15.972,52.86198263]
[1673542095783,20.0,15.986,15.972,52.86198263]
[1673542096187,20.0,15.986,15.973,20.0]
[1673542097140,42.21545,15.987,15.973,20.0]
[1673542097345,25.21545,15.987,15.973,20.0]
[1673542097560,25.21545,15.987,15.974,14.62]
[1673542097777,25.21545,15.987,15.975,20.0]
[1673542098732,25.21545,15.987,15.974,20.0]
[1673542099038,5.21545,15.987,15.974,20.0]
[1673542100733,5.21545,15.987,15.975,20.0]
[1673542101038,117.4235,15.992,15.975,58.88302422]
[1673542101238,117.4235,15.992,15.976,139.0018]
[1673542101451,117.4235,15.992,15.977,20.19]
[1673542101763,117.4235,15.992,15.979,20.0]
[1673542102092,117.4235,15.992,15.98,22.41]
[1673542102305,117.4235,15.992,15.98,42.41]
[1673542103989,117.4235,15.992,15.981,20.0]
[1673542104189,117.4235,15.992,15.982,20.0]
[1673542105131,20.0,15.996,15.982,20.0]
[1673542108070,20.0,15.996,15.981,20.0]
[1673542108296,46.89,15.995,15.981,20.0]
[1673542108617,20.0,15.994,15.981,20.0]
[1673542110494,66.89,15.996,15.981,20.0]
[1673542110930,46.89,15.996,15.981,20.0]
[1673542111134,66.89,15.997,15.982,20.0]
[1673542113131,66.89,15.998,15.982,20.0]
[1673542113445,66.89,15.998,15.982,60.64]
[1673542113674,66.89,15.998,15.983,20.0]
[1673542114477,17.0,15.997,15.982,20.0]
[1673542114792,66.89,15.996,15.982,20.0]
[1673542115002,20.0,15.995,15.982,20.0]
[1673542116055,20.0,15.995,15.981,20.0]
[1673542118487,66.89,15.996,15.981,20.0]
[1673542118705,46.88,15.999,15.981,84.68647145]
[1673542118913,46.88,16.001,15.982,40.1]
[1673542119117,46.88,16.001,15.983,20.0]
[1673542119526,46.86,16.006,15.99,17.68]
[1673542119736,46.85,16.009,15.991,60.15]
[1673542120072,46.84,16.014,15.991,113.01198263]
[1673542120269,25.21545,16.013,15.991,225.34768263]
[1673542120477,20.0,16.01,15.991,225.34768263]
[1673542120693,52.06545,16.009,15.991,225.34768263]
[1673542121104,20.0,16.008,15.991,172.4857]
[1673542121319,32.3430049,16.019,16.0,17.68]
[1673542121643,20.0,16.024,16.002,20.0]
[1673542121850,46.81,16.023,16.003,54.52]
[1673542122062,25.21545,16.022,16.003,34.52]
[1673542122272,17.78,16.02,16.004,20.0]
[1673542122479,20.0,16.018,16.004,20.0]
[1673542122701,5.21545,16.017,16.004,20.0]
[1673542123109,52.04545,16.017,16.003,20.0]
[1673542123317,52.04545,16.017,16.002,20.0]
[1673542123318,17.0,16.016,16.002,20.0]
[1673542123532,20.0,16.015,16.002,20.0]
[1673542123746,22.21545,16.014,16.002,20.0]
[1673542123949,20.0,16.013,16.002,20.0]
[1673542124588,46.84,16.012,15.995,52.86198263]
[1673542124793,17.78,16.01,15.994,31.31]
[1673542125026,46.85,16.009,15.992,226.5223]
[1673542125329,37.0,16.008,15.992,226.5223]
[1673542125539,20.0,16.006,15.992,226.5223]
[1673542126262,20.0,16.006,15.993,20.0]
[1673542126474,46.86,16.005,15.993,20.0]
[1673542126886,72.07545,16.006,15.992,108.4718]
[1673542127529,20.0,16.004,15.992,108.4718]
[1673542127748,5.21545,16.003,15.992,108.4718]
[1673542128182,5.21545,16.003,15.993,20.0]
[1673542128802,66.83,16.016,15.994,20.0]
[1673542129012,20.0,16.013,15.996,20.0]
[1673542129339,20.0,16.013,15.997,37.84]
[1673542129526,20.0,16.013,15.997,49.30360163]
[1673542129943,20.0,16.013,15.998,11.46360163]
[1673542130156,20.0,16.013,15.999,38.72]
[1673542130602,20.0,16.013,16.0,11.46360163]
[1673542130995,20.0,16.015,16.001,39.38]
[1673542132158,17.0,16.014,16.001,39.38]
[1673542132366,20.0,16.013,16.001,20.0]
[1673542133099,46.84,16.012,16.001,20.0]
[1673542133316,20.0,16.011,16.001,20.0]
[1673542134588,20.0,16.011,15.996,130.20730163]
[1673542134589,17.7,16.01,15.997,17.76]
[1673542134807,64.55,16.01,15.995,118.7437]
[1673542134999,17.0,16.009,15.988,17.45]
[1673542135209,234.26,16.008,15.989,130.20730163]
[1673542135416,17.0,16.007,15.989,130.20730163]
[1673542135742,17.0,16.007,15.984,119.0978]
[1673542135743,17.7,16.0,15.981,59.99198263]
[1673542135952,251.28,15.999,15.981,118.7437]
[1673542136479,20.0,15.998,15.981,130.20730163]
[1673542136669,63.89,15.997,15.981,130.20730163]
[1673542137095,46.89,15.997,15.982,20.0]
[1673542137320,20.0,15.996,15.981,130.20730163]
[1673542137532,46.89,15.995,15.981,130.20730163]
[1673542138242,20.0,15.994,15.981,130.20730163]
[1673542140151,20.0,15.994,15.982,20.0]
[1673542142665,17.7,15.99,15.982,20.0]
[1673542142874,17.7,15.99,15.977,20.0]
[1673542143075,17.7,15.99,15.976,20.0]
[1673542143711,17.7,15.99,15.977,11.46360163]
[1673542143912,17.7,15.99,15.978,20.0]
[1673542144360,17.7,15.99,15.978,31.46360163]
[1673542145197,46.9,15.993,15.978,31.46360163]
[1673542145406,46.89,15.995,15.979,20.0]
[1673542145605,66.89,15.997,15.98,20.0]
[1673542145816,66.89,15.997,15.98,31.46360163]
[1673542146040,20.0,15.994,15.981,11.46360163]
[1673542146235,20.0,15.994,15.982,20.0]
[1673542146464,20.0,15.997,15.982,20.0]
[1673542146675,20.0,15.997,15.982,33.21060163]
[1673542147219,20.0,15.997,15.983,31.46360163]
[1673542147425,20.0,15.997,15.984,20.0]
[1673542147645,17.94,16.0,15.985,1.9]
[1673542147840,66.87,16.004,15.985,13.36360163]
[1673542148172,20.0,16.004,15.986,31.46360163]
[1673542148478,20.0,16.004,15.987,35.28760163]
[1673542148792,20.0,16.004,15.988,31.46360163]
[1673542149002,46.86,16.005,15.989,5.408]
[1673542149320,20.0,16.006,15.991,20.0]
[1673542149536,20.0,16.006,15.992,20.0]
[1673542151512,20.0,16.006,15.991,20.0]
[1673542153314,66.86,16.008,15.993,20.0]
[1673542153501,20.0,16.008,15.994,28.594]
[1673542153711,20.0,16.008,15.994,40.05760163]
[1673542154349,20.0,16.008,15.994,20.0]
[1673542154575,20.0,16.008,15.992,11.46360163]
[1673542154885,20.0,16.008,15.993,29.478]
[1673542155316,66.86,16.008,15.993,29.478]
[1673542156234,207.4,16.007,15.986,12.15]
[1673542156451,17.78,16.0,15.98,17.74]
[1673542156672,63.88,15.999,15.981,114.1801]
[1673542157076,20.0,15.998,15.982,20.0]
[1673542157299,46.89,15.997,15.982,20.0]
[1673542157721,20.0,15.998,15.983,10.98]
[1673542157931,20.0,15.998,15.982,32.2]
[1673542159220,20.0,15.998,15.983,20.0]
[1673542159623,46.89,15.997,15.983,20.0]
[1673542160272,46.89,15.997,15.982,20.0]
[1673542161004,20.0,15.996,15.982,20.0]
[1673542163197,20.0,15.996,15.982,33.42]
[1673542163951,20.0,15.996,15.982,20.0]
[1673542168876,20.0,15.996,15.976,12.62]
[1673542168877,17.7,15.99,15.976,12.62]
[1673542169081,234.31,15.989,15.96,127.8454]
[1673542169296,17.0,15.988,15.962,111.6282]
[1673542169520,46.92,15.987,15.967,11.46360163]
[1673542169734,46.92,15.987,15.968,11.63]
[1673542170135,20.0,15.986,15.969,11.46360163]
[1673542170351,46.92,15.985,15.969,123.09180163]
[1673542170677,46.92,15.985,15.97,20.0]
[1673542171109,20.0,15.984,15.97,20.0]
[1673542171950,26.48,15.98,15.97,20.0]
[1673542172258,46.94,15.979,15.964,13.25]
[1673542172449,17.0,15.978,15.962,109.2059]
[1673542172660,46.95,15.977,15.962,109.2059]
[1673542173094,20.0,15.976,15.962,109.2059]
[1673542173920,46.95,15.977,15.963,33.65106447]
[1673542174133,46.94,15.979,15.964,11.46360163]
[1673542174345,26.48,15.98,15.964,25.90360163]
[1673542174571,46.93,15.982,15.964,25.90360163]
[1673542174775,26.43,15.98,15.964,14.44]
[1673542174990,20.0,15.978,15.963,13.65106447]
[1673542175305,20.0,15.976,15.963,13.65106447]
[1673542175819,46.95,15.977,15.963,13.65106447]
[1673542176032,46.95,15.977,15.964,40.0]
[1673542176346,46.94,15.979,15.964,40.0]
[1673542176879,66.93,15.983,15.966,20.0]
[1673542177087,66.93,15.983,15.967,37.19]
[1673542177088,20.0,15.983,15.967,37.19]
[1673542177706,66.93,15.983,15.967,37.19]
[1673542181195,66.93,15.983,15.966,20.0]
[1673542181418,17.0,15.982,15.966,20.0]
[1673542181626,26.51,15.98,15.966,20.0]
[1673542181841,20.0,15.978,15.964,13.65020935]
[1673542182358,46.95,15.977,15.964,13.65020935]
[1673542182570,20.0,15.976,15.964,13.65020935]
[1673542183178,20.0,15.976,15.955,13.7120487]
[1673542183179,26.7,15.97,15.955,13.7120487]
[1673542183518,204.4,15.969,15.955,13.7120487]
[1673542183711,66.97,15.968,15.955,13.7120487]
[1673542183920,20.0,15.968,15.955,13.7120487]
[1673542184980,187.4,15.966,15.955,13.7120487]
[1673542185192,46.98,15.965,15.955,13.7120487]
[1673542185386,46.98,15.967,15.955,13.7120487]
[1673542185598,17.0,15.966,15.951,115.3102]
[1673542185813,20.0,15.964,15.951,115.3102]
[1673542186239,26.48,15.96,15.946,13.71978784]
[1673542186547,64.0,15.959,15.946,13.71978784]
[1673542186751,20.0,15.958,15.938,20.0]
[1673542186960,64.01,15.957,15.938,20.0]
[1673542219578,20.0,15.953,15.938,20.0]
[1673542219888,20.0,15.953,15.939,40.72]
[1673542220095,20.0,15.953,15.94,20.0]
[1673542220730,20.0,15.953,15.939,20.0]
[1673542222315,254.41,15.954,15.939,20.0]
[1673542222503,17.0,15.953,15.939,20.0]
[1673542222941,20.0,15.952,15.939,20.0]
[1673542223339,47.01,15.954,15.94,20.0]
[1673542223569,47.01,15.956,15.94,20.0]
[1673542223788,20.0,15.957,15.941,41.1]
[1673542224090,20.0,15.957,15.943,20.0]
[1673542224526,20.0,15.957,15.944,20.0]
[1673542225135,67.0,15.958,15.944,20.0]
[1673542225355,20.0,15.958,15.944,20.0]
[1673542226399,47.0,15.959,15.945,20.0]
[1673542226622,234.39,15.963,15.946,60.69]
[1673542227257,20.0,15.962,15.946,60.69]
[1673542227583,213.91,15.96,15.945,114.5524]
[1673542227780,20.0,15.957,15.945,114.5524]
[1673542227985,67.01,15.957,15.945,114.5524]
[1673542229379,20.0,15.957,15.945,114.5524]
[1673542230298,20.0,15.957,15.946,20.0]
[1673542231161,67.0,15.959,15.946,20.0]
[1673542235550,254.4,15.959,15.946,20.0]
[1673542235765,17.0,15.958,15.946,20.0]
[1673542235974,234.41,15.957,15.946,3.0]
[1673542236206,234.41,15.957,15.941,20.0]
[1673542236207,20.0,15.955,15.941,20.0]
[1673542236420,251.41,15.954,15.941,20.0]
[1673542236637,251.41,15.954,15.939,114.8635]
[1673542237248,20.0,15.953,15.94,20.0]
[1673542237474,64.02,15.952,15.94,20.0]
[1673542237669,20.0,15.951,15.94,20.0]
[1673542238931,231.1,15.95,15.933,38.28]
[1673542239149,231.1,15.95,15.932,156.3944]
[1673542239150,234.43,15.949,15.932,156.3944]
[1673542239367,37.0,15.948,15.932,118.1144]
[1673542239565,47.04,15.947,15.932,118.1144]
[1673542239888,47.04,15.947,15.932,128.15558335]
[1673542240294,67.03,15.949,15.933,56.17]